[Event "Titled Tuesday Blitz February 21 Late 2023"]
[White "Bikuzhin, Maksim"]
[Black "Figorito, Nick"]
[WhiteFideId "24128015"]
[BlackFideId "30923689"]
[WhiteElo "2279"]
[BlackElo "2036"]
[Result "1-0"]
[Round "01"]
[TimeControl "180+2"]
[Date "2023.02.21"]
[WhiteClock "0:00:37"]
[BlackClock "0:00:23"]

1. e4 {[%clk 0:03:00]}  e6 {[%clk 0:02:58]} 2. d3 {[%clk 0:02:59]}  d5 {[%clk 0:02:59]} 3. Nd2 {[%clk 0:02:58]}  Nc6 {[%clk 0:02:59]} 4. Ngf3 {[%clk 0:02:58]}  Nf6 {[%clk 0:03:00]} 5. c3 {[%clk 0:02:57]}  e5 {[%clk 0:02:59]} 6. b4 {[%clk 0:02:55]}  d4 {[%clk 0:02:52]} 7. Bb2 {[%clk 0:02:50]}  dxc3 {[%clk 0:02:50]} 8. Bxc3 {[%clk 0:02:51]}  Bxb4 {[%clk 0:02:28]} 9. Bxb4 {[%clk 0:02:50]}  Nxb4 {[%clk 0:02:29]} 10. Qa4+ {[%clk 0:02:50]}  Nc6 {[%clk 0:02:27]} 11. Nxe5 {[%clk 0:02:49]}  Bd7 {[%clk 0:02:18]} 12. Nxc6 {[%clk 0:02:43]}  Bxc6 {[%clk 0:02:18]} 13. Qc2 {[%clk 0:02:44]}  O-O {[%clk 0:02:18]} 14. Be2 {[%clk 0:02:40]}  Qd7 {[%clk 0:02:03]} 15. O-O {[%clk 0:02:39]}  Rad8 {[%clk 0:02:03]} 16. Nf3 {[%clk 0:02:27]}  Rfe8 {[%clk 0:01:57]} 17. Rac1 {[%clk 0:02:19]}  Ng4 {[%clk 0:01:45]} 18. Qc5 {[%clk 0:02:11]}  Qd6 {[%clk 0:01:35]} 19. Qxa7 {[%clk 0:02:01]}  Ra8 {[%clk 0:01:29]} 20. Qc5 {[%clk 0:02:01]}  Qxc5 {[%clk 0:01:23]} 21. Rxc5 {[%clk 0:02:00]}  Rxa2 {[%clk 0:01:24]} 22. Re1 {[%clk 0:01:52]}  Rea8 {[%clk 0:01:16]} 23. h3 {[%clk 0:01:45]}  Nf6 {[%clk 0:01:16]} 24. Ne5 {[%clk 0:01:43]}  Rd2 {[%clk 0:00:58]} 25. Nxc6 {[%clk 0:01:37]}  bxc6 {[%clk 0:00:59]} 26. Rxc6 {[%clk 0:01:31]}  Raa2 {[%clk 0:00:59]} 27. Kf1 {[%clk 0:01:27]}  Ne8 {[%clk 0:00:57]} 28. f4 {[%clk 0:01:27]}  g6 {[%clk 0:00:56]} 29. Rc3 {[%clk 0:01:22]}  Kg7 {[%clk 0:00:55]} 30. Kf2 {[%clk 0:01:22]}  h5 {[%clk 0:00:53]} 31. Ke3 {[%clk 0:01:20]}  h4 {[%clk 0:00:47]} 32. Bf3 {[%clk 0:01:17]}  Rdc2 {[%clk 0:00:37]} 33. Rxc2 {[%clk 0:01:09]}  Rxc2 {[%clk 0:00:38]} 34. Rb1 {[%clk 0:01:09]}  Nd6 {[%clk 0:00:38]} 35. Rb8 {[%clk 0:01:01]}  c5 {[%clk 0:00:37]} 36. Rb6 {[%clk 0:00:57]}  Nc8 {[%clk 0:00:36]} 37. Rb7 {[%clk 0:00:53]}  Nd6 {[%clk 0:00:36]} 38. Rd7 {[%clk 0:00:53]}  Nb5 {[%clk 0:00:36]} 39. e5 {[%clk 0:00:50]}  Kf8 {[%clk 0:00:36]} 40. f5 {[%clk 0:00:42]}  g5 {[%clk 0:00:33]} 41. f6 {[%clk 0:00:40]}  Ke8 {[%clk 0:00:33]} 42. Bc6 {[%clk 0:00:38]}  Re2+ {[%clk 0:00:22]} 43. Kxe2 {[%clk 0:00:37]}  Nd4+ {[%clk 0:00:23]} 44. Rxd4+ {[%clk 0:00:37]} 1-0


[Site "https://www.chess.com"]

[Event "Titled Tuesday Blitz February 21 Late 2023"]
[White "Semenenko, Dmytry"]
[Black "Yuan, Qingyu"]
[WhiteFideId "14118645"]
[BlackFideId "8609772"]
[WhiteElo "2113"]
[BlackElo "2373"]
[Result "0-1"]
[Round "01"]
[TimeControl "180+2"]
[Date "2023.02.21"]
[WhiteClock "0:00:19"]
[BlackClock "0:00:34"]

1. Nf3 {[%clk 0:02:58]}  d5 {[%clk 0:02:59]} 2. c4 {[%clk 0:02:58]}  e6 {[%clk 0:02:59]} 3. d4 {[%clk 0:02:58]}  Nf6 {[%clk 0:02:59]} 4. Nc3 {[%clk 0:02:57]}  Be7 {[%clk 0:03:00]} 5. Bg5 {[%clk 0:02:57]}  h6 {[%clk 0:02:59]} 6. Bh4 {[%clk 0:02:57]}  O-O {[%clk 0:03:00]} 7. e3 {[%clk 0:02:56]}  Nbd7 {[%clk 0:03:00]} 8. Bd3 {[%clk 0:02:55]}  dxc4 {[%clk 0:03:00]} 9. Bxc4 {[%clk 0:02:55]}  a6 {[%clk 0:02:58]} 10. O-O {[%clk 0:02:55]}  b5 {[%clk 0:02:59]} 11. Bd3 {[%clk 0:02:55]}  Bb7 {[%clk 0:02:58]} 12. Qe2 {[%clk 0:02:54]}  c5 {[%clk 0:02:58]} 13. Rfd1 {[%clk 0:02:54]}  Qb6 {[%clk 0:02:47]} 14. Ne5 {[%clk 0:02:47]}  Rad8 {[%clk 0:02:43]} 15. Nxd7 {[%clk 0:02:40]}  Rxd7 {[%clk 0:02:37]} 16. dxc5 {[%clk 0:02:40]}  Qc6 {[%clk 0:02:11]} 17. f3 {[%clk 0:02:24]}  Bxc5 {[%clk 0:01:47]} 18. Bxf6 {[%clk 0:02:13]}  gxf6 {[%clk 0:01:47]} 19. Ne4 {[%clk 0:02:13]}  Be7 {[%clk 0:01:23]} 20. Rac1 {[%clk 0:01:45]}  Qb6 {[%clk 0:01:22]} 21. f4 {[%clk 0:01:12]}  f5 {[%clk 0:01:12]} 22. Ng3 {[%clk 0:01:05]}  Rfd8 {[%clk 0:01:04]} 23. Kf2 {[%clk 0:00:41]}  Bf6 {[%clk 0:00:54]} 24. Bb1 {[%clk 0:00:30]}  Rxd1 {[%clk 0:00:39]} 25. Rxd1 {[%clk 0:00:30]}  Rxd1 {[%clk 0:00:39]} 26. Qxd1 {[%clk 0:00:30]}  Bxb2 {[%clk 0:00:40]} 27. Qh5 {[%clk 0:00:25]}  Qc6 {[%clk 0:00:34]} 28. Qe2 {[%clk 0:00:20]}  Qxg2+ {[%clk 0:00:34]} 29. Ke1 {[%clk 0:00:20]}  Bc3+ {[%clk 0:00:33]} 30. Kd1 {[%clk 0:00:19]}  Bf3 {[%clk 0:00:34]} 0-1


[Site "https://www.chess.com"]

[Event "Titled Tuesday Blitz February 21 Late 2023"]
[White "Yanchenko, Roman"]
[Black "Hoffmann, Asa"]
[WhiteFideId "4137329"]
[BlackFideId "2001470"]
[WhiteElo "2466"]
[BlackElo "2185"]
[Result "1-0"]
[Round "01"]
[TimeControl "180+2"]
[Date "2023.02.21"]
[WhiteClock "0:01:10"]
[BlackClock "0:00:34"]

1. d4 {[%clk 0:02:58]}  Nf6 {[%clk 0:02:55]} 2. c4 {[%clk 0:02:58]}  c5 {[%clk 0:02:54]} 3. e3 {[%clk 0:02:58]}  g6 {[%clk 0:02:50]} 4. Nf3 {[%clk 0:02:58]}  Bg7 {[%clk 0:02:50]} 5. Nc3 {[%clk 0:02:58]}  O-O {[%clk 0:02:50]} 6. Be2 {[%clk 0:02:58]}  cxd4 {[%clk 0:02:47]} 7. exd4 {[%clk 0:02:58]}  d5 {[%clk 0:02:47]} 8. c5 {[%clk 0:02:58]}  Nc6 {[%clk 0:02:43]} 9. O-O {[%clk 0:02:58]}  b6 {[%clk 0:02:34]} 10. cxb6 {[%clk 0:02:58]}  axb6 {[%clk 0:02:33]} 11. h3 {[%clk 0:02:58]}  Bf5 {[%clk 0:02:31]} 12. a3 {[%clk 0:02:56]}  e6 {[%clk 0:02:30]} 13. Bf4 {[%clk 0:02:55]}  Ne4 {[%clk 0:02:24]} 14. Nb5 {[%clk 0:02:54]}  Rc8 {[%clk 0:02:16]} 15. Rc1 {[%clk 0:02:54]}  Qd7 {[%clk 0:02:11]} 16. g4 {[%clk 0:02:52]}  e5 {[%clk 0:02:08]} 17. Nxe5 {[%clk 0:02:42]}  Nxe5 {[%clk 0:02:06]} 18. Rxc8 {[%clk 0:02:35]}  Rxc8 {[%clk 0:01:56]} 19. dxe5 {[%clk 0:02:35]}  Be6 {[%clk 0:01:55]} 20. Nd4 {[%clk 0:02:30]}  Qc7 {[%clk 0:01:47]} 21. Nxe6 {[%clk 0:01:55]}  fxe6 {[%clk 0:01:46]} 22. Qd4 {[%clk 0:01:51]}  Bf8 {[%clk 0:01:29]} 23. b4 {[%clk 0:01:42]}  Qc3 {[%clk 0:01:27]} 24. Qxc3 {[%clk 0:01:39]}  Rxc3 {[%clk 0:01:23]} 25. Rc1 {[%clk 0:01:39]}  Rxc1+ {[%clk 0:01:17]} 26. Bxc1 {[%clk 0:01:39]}  d4 {[%clk 0:01:08]} 27. Bd3 {[%clk 0:01:21]}  Nc3 {[%clk 0:01:07]} 28. f4 {[%clk 0:01:21]}  Bg7 {[%clk 0:01:00]} 29. Kf2 {[%clk 0:01:21]}  g5 {[%clk 0:01:00]} 30. Kf3 {[%clk 0:01:20]}  gxf4 {[%clk 0:01:00]} 31. Bxf4 {[%clk 0:01:19]}  Kf7 {[%clk 0:00:53]} 32. Bxh7 {[%clk 0:01:18]}  Nb5 {[%clk 0:00:50]} 33. a4 {[%clk 0:01:18]}  Nc3 {[%clk 0:00:48]} 34. a5 {[%clk 0:01:18]}  bxa5 {[%clk 0:00:47]} 35. bxa5 {[%clk 0:01:19]}  Bf8 {[%clk 0:00:45]} 36. a6 {[%clk 0:01:18]}  Bc5 {[%clk 0:00:45]} 37. h4 {[%clk 0:01:17]}  Nd5 {[%clk 0:00:44]} 38. h5 {[%clk 0:01:16]}  Nb4 {[%clk 0:00:42]} 39. Bg6+ {[%clk 0:01:09]}  Kg7 {[%clk 0:00:41]} 40. Bg5 {[%clk 0:01:10]}  Nxa6 {[%clk 0:00:37]} 41. Bf6+ {[%clk 0:01:10]}  Kg8 {[%clk 0:00:34]} 42. h6 {[%clk 0:01:10]} 1-0


[Site "https://www.chess.com"]

[Event "Titled Tuesday Blitz February 21 Late 2023"]
[White "Backsten, Jan"]
[Black "Tatarinov, Dmitry"]
[WhiteFideId "1735381"]
[BlackFideId "24160067"]
[WhiteElo "2029"]
[BlackElo "2310"]
[Result "0-1"]
[Round "01"]
[TimeControl "180+2"]
[Date "2023.02.21"]
[WhiteClock "0:00:20"]
[BlackClock "0:00:28"]

1. e4 {[%clk 0:03:00]}  e5 {[%clk 0:02:59]} 2. Nf3 {[%clk 0:03:00]}  Nc6 {[%clk 0:03:00]} 3. Bc4 {[%clk 0:02:59]}  Nf6 {[%clk 0:02:59]} 4. O-O {[%clk 0:02:58]}  Nxe4 {[%clk 0:02:58]} 5. Nc3 {[%clk 0:02:34]}  Nxc3 {[%clk 0:02:48]} 6. dxc3 {[%clk 0:02:35]}  Be7 {[%clk 0:02:49]} 7. Re1 {[%clk 0:02:32]}  d6 {[%clk 0:02:46]} 8. h3 {[%clk 0:02:21]}  O-O {[%clk 0:02:46]} 9. a4 {[%clk 0:02:16]}  Be6 {[%clk 0:02:43]} 10. Qe2 {[%clk 0:02:15]}  Bxc4 {[%clk 0:02:35]} 11. Qxc4 {[%clk 0:02:16]}  d5 {[%clk 0:02:35]} 12. Qb5 {[%clk 0:02:16]}  a6 {[%clk 0:02:30]} 13. Qe2 {[%clk 0:02:07]}  e4 {[%clk 0:02:29]} 14. Nd4 {[%clk 0:02:06]}  Nxd4 {[%clk 0:02:29]} 15. cxd4 {[%clk 0:02:07]}  Bd6 {[%clk 0:02:24]} 16. c4 {[%clk 0:02:04]}  c6 {[%clk 0:02:24]} 17. Bd2 {[%clk 0:01:57]}  f5 {[%clk 0:02:20]} 18. Rac1 {[%clk 0:01:54]}  f4 {[%clk 0:02:18]} 19. cxd5 {[%clk 0:01:51]}  cxd5 {[%clk 0:02:19]} 20. Qh5 {[%clk 0:01:50]}  g5 {[%clk 0:01:59]} 21. h4 {[%clk 0:01:44]}  Rf5 {[%clk 0:01:58]} 22. Qg4 {[%clk 0:01:25]}  Qf6 {[%clk 0:01:53]} 23. h5 {[%clk 0:01:16]}  Rf8 {[%clk 0:01:52]} 24. Rc2 {[%clk 0:01:12]}  h6 {[%clk 0:01:39]} 25. Bc3 {[%clk 0:01:11]}  Qe6 {[%clk 0:01:36]} 26. a5 {[%clk 0:01:05]}  R5f6 {[%clk 0:01:35]} 27. Qxe6+ {[%clk 0:01:02]}  Rxe6 {[%clk 0:01:36]} 28. Bd2 {[%clk 0:01:01]}  Kf7 {[%clk 0:01:32]} 29. Rec1 {[%clk 0:01:01]}  Rd8 {[%clk 0:01:33]} 30. Kf1 {[%clk 0:01:00]}  Kf6 {[%clk 0:01:30]} 31. Ke2 {[%clk 0:01:00]}  Kf5 {[%clk 0:01:30]} 32. Rc3 {[%clk 0:00:42]}  g4 {[%clk 0:01:30]} 33. g3 {[%clk 0:00:39]}  e3 {[%clk 0:01:05]} 34. fxe3 {[%clk 0:00:30]}  fxg3 {[%clk 0:01:04]} 35. Kf1 {[%clk 0:00:30]}  Ke4 {[%clk 0:01:00]} 36. Kg2 {[%clk 0:00:30]}  Rf8 {[%clk 0:00:59]} 37. Be1 {[%clk 0:00:27]}  Rf3 {[%clk 0:00:55]} 38. R1c2 {[%clk 0:00:28]}  Ref6 {[%clk 0:00:52]} 39. Re2 {[%clk 0:00:27]}  R6f5 {[%clk 0:00:51]} 40. Rc8 {[%clk 0:00:26]}  Rxh5 {[%clk 0:00:51]} 41. Re8+ {[%clk 0:00:26]}  Kd3 {[%clk 0:00:47]} 42. Rd2+ {[%clk 0:00:26]}  Kc4 {[%clk 0:00:47]} 43. Rc8+ {[%clk 0:00:26]}  Kb5 {[%clk 0:00:47]} 44. Rg8 {[%clk 0:00:25]}  Rh2+ {[%clk 0:00:47]} 45. Kg1 {[%clk 0:00:25]}  Rxd2 {[%clk 0:00:46]} 46. Bxd2 {[%clk 0:00:25]}  h5 {[%clk 0:00:42]} 47. Rg5 {[%clk 0:00:26]}  Kc4 {[%clk 0:00:42]} 48. Rxh5 {[%clk 0:00:26]}  Rf2 {[%clk 0:00:38]} 49. Be1 {[%clk 0:00:26]}  Re2 {[%clk 0:00:38]} 50. Bc3 {[%clk 0:00:24]}  Rxe3 {[%clk 0:00:36]} 51. Rg5 {[%clk 0:00:24]}  Bf4 {[%clk 0:00:35]} 52. Rxg4 {[%clk 0:00:24]}  Rf3 {[%clk 0:00:31]} 53. Kg2 {[%clk 0:00:24]}  Rf2+ {[%clk 0:00:32]} 54. Kg1 {[%clk 0:00:24]}  Be3 {[%clk 0:00:27]} 55. Rxg3 {[%clk 0:00:22]}  Rf3+ {[%clk 0:00:27]} 56. Kg2 {[%clk 0:00:22]}  Rxg3+ {[%clk 0:00:28]} 57. Kxg3 {[%clk 0:00:23]}  Bxd4 {[%clk 0:00:29]} 58. Bd2 {[%clk 0:00:20]}  Bxb2 {[%clk 0:00:28]} 0-1


[Site "https://www.chess.com"]

[Event "Titled Tuesday Blitz February 21 Late 2023"]
[White "Rosenberg, Evan S"]
[Black "Quispe Arteaga, Gabriel"]
[WhiteFideId "2019299"]
[BlackFideId "32059809"]
[WhiteElo "1956"]
[BlackElo "2381"]
[Result "0-1"]
[Round "01"]
[TimeControl "180+2"]
[Date "2023.02.21"]
[WhiteClock "0:00:31"]
[BlackClock "0:00:19"]

1. d4 {[%clk 0:03:00]}  Nf6 {[%clk 0:02:58]} 2. Nf3 {[%clk 0:02:59]}  e6 {[%clk 0:02:54]} 3. g3 {[%clk 0:02:59]}  b5 {[%clk 0:02:54]} 4. Bg2 {[%clk 0:02:56]}  Bb7 {[%clk 0:02:55]} 5. O-O {[%clk 0:02:55]}  c5 {[%clk 0:02:56]} 6. Na3 {[%clk 0:02:54]}  a6 {[%clk 0:02:51]} 7. c4 {[%clk 0:02:32]}  b4 {[%clk 0:02:51]} 8. Nc2 {[%clk 0:02:29]}  d6 {[%clk 0:02:51]} 9. dxc5 {[%clk 0:02:25]}  dxc5 {[%clk 0:02:49]} 10. Qxd8+ {[%clk 0:02:26]}  Kxd8 {[%clk 0:02:50]} 11. Ne5 {[%clk 0:02:17]}  Bxg2 {[%clk 0:02:50]} 12. Kxg2 {[%clk 0:02:13]}  Ke8 {[%clk 0:02:48]} 13. Rd1 {[%clk 0:02:08]}  Nbd7 {[%clk 0:02:47]} 14. Bf4 {[%clk 0:01:52]}  Nxe5 {[%clk 0:02:20]} 15. Bxe5 {[%clk 0:01:52]}  Nd7 {[%clk 0:02:21]} 16. Bd6 {[%clk 0:01:45]}  Bxd6 {[%clk 0:02:11]} 17. Rxd6 {[%clk 0:01:46]}  Ke7 {[%clk 0:02:12]} 18. Rad1 {[%clk 0:01:43]}  Rhd8 {[%clk 0:02:12]} 19. Ne3 {[%clk 0:01:39]}  Ne5 {[%clk 0:01:44]} 20. Rxd8 {[%clk 0:01:32]}  Rxd8 {[%clk 0:01:45]} 21. Rxd8 {[%clk 0:01:31]}  Kxd8 {[%clk 0:01:46]} 22. b3 {[%clk 0:01:25]}  a5 {[%clk 0:01:42]} 23. f4 {[%clk 0:01:14]}  Nc6 {[%clk 0:01:42]} 24. Nc2 {[%clk 0:01:14]}  Kc7 {[%clk 0:01:42]} 25. Kf3 {[%clk 0:01:14]}  Kb6 {[%clk 0:01:42]} 26. e3 {[%clk 0:01:11]}  a4 {[%clk 0:01:42]} 27. Ke2 {[%clk 0:01:08]}  axb3 {[%clk 0:01:42]} 28. axb3 {[%clk 0:01:09]}  Na5 {[%clk 0:01:42]} 29. Na1 {[%clk 0:01:09]}  Kc6 {[%clk 0:01:43]} 30. Kd3 {[%clk 0:01:09]}  Kd6 {[%clk 0:01:43]} 31. Kc2 {[%clk 0:01:07]}  e5 {[%clk 0:01:44]} 32. Kb2 {[%clk 0:01:07]}  e4 {[%clk 0:01:42]} 33. Nc2 {[%clk 0:01:07]}  h5 {[%clk 0:01:41]} 34. Ne1 {[%clk 0:01:07]}  Ke6 {[%clk 0:01:42]} 35. Ng2 {[%clk 0:01:08]}  f6 {[%clk 0:01:35]} 36. Kc2 {[%clk 0:01:06]}  Nc6 {[%clk 0:01:22]} 37. h3 {[%clk 0:01:05]}  g5 {[%clk 0:00:36]} 38. g4 {[%clk 0:00:56]}  hxg4 {[%clk 0:00:31]} 39. hxg4 {[%clk 0:00:54]}  Nd8 {[%clk 0:00:32]} 40. f5+ {[%clk 0:00:44]}  Ke5 {[%clk 0:00:25]} 41. Kd2 {[%clk 0:00:42]}  Nf7 {[%clk 0:00:24]} 42. Ke2 {[%clk 0:00:28]}  Nh6 {[%clk 0:00:25]} 43. Kf2 {[%clk 0:00:29]}  Nxg4+ {[%clk 0:00:25]} 44. Kg3 {[%clk 0:00:30]}  Nh6 {[%clk 0:00:26]} 45. Ne1 {[%clk 0:00:29]}  Nxf5+ {[%clk 0:00:25]} 46. Kf2 {[%clk 0:00:30]}  Nxe3 {[%clk 0:00:19]} 47. Nc2 {[%clk 0:00:31]}  Nxc2 {[%clk 0:00:19]} 0-1


[Site "https://www.chess.com"]

[Event "Titled Tuesday Blitz February 21 Late 2023"]
[White "Maksimovic, Bojan"]
[Black "Matko, Ognjen"]
[WhiteFideId "14408120"]
[BlackFideId "14509717"]
[WhiteElo "2486"]
[BlackElo "2295"]
[Result "0-1"]
[Round "01"]
[TimeControl "180+2"]
[Date "2023.02.21"]
[WhiteClock "0:00:02"]
[BlackClock "0:00:25"]

1. e4 {[%clk 0:03:00]}  e5 {[%clk 0:02:59]} 2. Nf3 {[%clk 0:03:00]}  Nc6 {[%clk 0:02:58]} 3. Bb5 {[%clk 0:03:00]}  a6 {[%clk 0:02:57]} 4. Ba4 {[%clk 0:03:01]}  Nf6 {[%clk 0:02:57]} 5. O-O {[%clk 0:03:01]}  b5 {[%clk 0:02:50]} 6. Bb3 {[%clk 0:03:01]}  Bc5 {[%clk 0:02:49]} 7. c3 {[%clk 0:03:01]}  d6 {[%clk 0:02:43]} 8. d4 {[%clk 0:03:01]}  Ba7 {[%clk 0:02:42]} 9. Be3 {[%clk 0:03:02]}  O-O {[%clk 0:02:38]} 10. Nbd2 {[%clk 0:03:00]}  Bg4 {[%clk 0:02:36]} 11. h3 {[%clk 0:02:57]}  Bh5 {[%clk 0:02:35]} 12. Qb1 {[%clk 0:02:28]}  Re8 {[%clk 0:02:28]} 13. Re1 {[%clk 0:02:28]}  Qd7 {[%clk 0:02:17]} 14. d5 {[%clk 0:02:09]}  Na5 {[%clk 0:02:10]} 15. Bg5 {[%clk 0:02:01]}  Bg6 {[%clk 0:02:03]} 16. Bxf6 {[%clk 0:01:54]}  gxf6 {[%clk 0:02:04]} 17. Bc2 {[%clk 0:01:54]}  c6 {[%clk 0:01:55]} 18. b4 {[%clk 0:01:45]}  Nb7 {[%clk 0:01:52]} 19. Nh4 {[%clk 0:01:23]}  Kh8 {[%clk 0:01:50]} 20. a4 {[%clk 0:01:21]}  Rg8 {[%clk 0:01:45]} 21. Kf1 {[%clk 0:01:06]}  c5 {[%clk 0:01:42]} 22. a5 {[%clk 0:00:50]}  cxb4 {[%clk 0:01:40]} 23. cxb4 {[%clk 0:00:51]}  Rac8 {[%clk 0:01:39]} 24. Ra3 {[%clk 0:00:51]}  Bd4 {[%clk 0:01:35]} 25. Nf5 {[%clk 0:00:51]}  Bxf5 {[%clk 0:01:20]} 26. exf5 {[%clk 0:00:52]}  Rc7 {[%clk 0:01:12]} 27. Ne4 {[%clk 0:00:29]}  Qxf5 {[%clk 0:01:04]} 28. Rf3 {[%clk 0:00:28]}  Qg6 {[%clk 0:01:00]} 29. Rg3 {[%clk 0:00:19]}  Qh6 {[%clk 0:01:00]} 30. Rxg8+ {[%clk 0:00:16]}  Kxg8 {[%clk 0:01:01]} 31. Bd3 {[%clk 0:00:12]}  Qf4 {[%clk 0:00:55]} 32. Qa2 {[%clk 0:00:02]}  f5 {[%clk 0:00:53]} 33. Ng3 {[%clk 0:00:03]}  Rc3 {[%clk 0:00:52]} 34. Qe2 {[%clk 0:00:01]}  Rxd3 {[%clk 0:00:50]} 35. Nh5 {[%clk 0:00:01]}  Qg5 {[%clk 0:00:48]} 36. f4 {[%clk 0:00:02]}  Qg6 {[%clk 0:00:45]} 37. Qxd3 {[%clk 0:00:03]}  Qxh5 {[%clk 0:00:41]} 38. Rc1 {[%clk 0:00:03]}  Qh4 {[%clk 0:00:38]} 39. Qd2 {[%clk 0:00:03]}  Qg3 {[%clk 0:00:36]} 40. Rc7 {[%clk 0:00:04]}  Nc5 {[%clk 0:00:34]} 41. bxc5 {[%clk 0:00:04]}  Bxc5 {[%clk 0:00:35]} 42. Rxc5 {[%clk 0:00:04]}  dxc5 {[%clk 0:00:35]} 43. d6 {[%clk 0:00:05]}  Qh4 {[%clk 0:00:33]} 44. d7 {[%clk 0:00:05]}  Qd8 {[%clk 0:00:33]} 45. fxe5 {[%clk 0:00:05]}  c4 {[%clk 0:00:32]} 46. Qd6 {[%clk 0:00:05]}  c3 {[%clk 0:00:32]} 47. Qc6 {[%clk 0:00:06]}  c2 {[%clk 0:00:31]} 48. e6 {[%clk 0:00:05]}  fxe6 {[%clk 0:00:30]} 49. Qxe6+ {[%clk 0:00:05]}  Kg7 {[%clk 0:00:31]} 50. Qe5+ {[%clk 0:00:05]}  Kh6 {[%clk 0:00:29]} 51. Qe6+ {[%clk 0:00:05]}  Kg5 {[%clk 0:00:28]} 52. Qe3+ {[%clk 0:00:04]}  Kf6 {[%clk 0:00:27]} 53. Qb6+ {[%clk 0:00:01]}  Qxb6 {[%clk 0:00:24]} 54. axb6 {[%clk 0:00:02]}  c1=Q+ {[%clk 0:00:25]} 55. Ke2 {[%clk 0:00:02]}  Qc4+ {[%clk 0:00:24]} 56. Ke3 {[%clk 0:00:02]}  Qc5+ {[%clk 0:00:24]} 57. Kf3 {[%clk 0:00:02]}  Qxb6 {[%clk 0:00:25]} 0-1


[Site "https://www.chess.com"]

[Event "Titled Tuesday Blitz February 21 Late 2023"]
[White "Rian, Kapriaga"]
[Black "Milikow, Yoav"]
[WhiteFideId "7103263"]
[BlackFideId "2822237"]
[WhiteElo "2089"]
[BlackElo "2394"]
[Result "0-1"]
[Round "01"]
[TimeControl "180+2"]
[Date "2023.02.21"]
[WhiteClock "0:00:01"]
[BlackClock "0:00:34"]

1. d4 {[%clk 0:02:52]}  Nf6 {[%clk 0:02:59]} 2. Nf3 {[%clk 0:02:52]}  d5 {[%clk 0:02:58]} 3. Bf4 {[%clk 0:02:52]}  c5 {[%clk 0:02:50]} 4. e3 {[%clk 0:02:52]}  Nc6 {[%clk 0:02:49]} 5. Nbd2 {[%clk 0:02:52]}  cxd4 {[%clk 0:02:49]} 6. exd4 {[%clk 0:02:51]}  Qb6 {[%clk 0:02:48]} 7. Nb3 {[%clk 0:02:48]}  Bf5 {[%clk 0:02:36]} 8. Be2 {[%clk 0:02:48]}  e6 {[%clk 0:02:33]} 9. O-O {[%clk 0:02:47]}  Be7 {[%clk 0:02:27]} 10. a4 {[%clk 0:02:41]}  a5 {[%clk 0:02:21]} 11. Re1 {[%clk 0:02:20]}  O-O {[%clk 0:02:19]} 12. Nh4 {[%clk 0:02:19]}  Be4 {[%clk 0:02:14]} 13. f3 {[%clk 0:02:11]}  Bxc2 {[%clk 0:02:01]} 14. Qxc2 {[%clk 0:02:07]}  Nxd4 {[%clk 0:02:01]} 15. Be3 {[%clk 0:01:46]}  Qxb3 {[%clk 0:01:57]} 16. Qxb3 {[%clk 0:01:20]}  Nxb3 {[%clk 0:01:58]} 17. Rad1 {[%clk 0:01:20]}  Bb4 {[%clk 0:01:52]} 18. Rf1 {[%clk 0:01:16]}  Bc5 {[%clk 0:01:40]} 19. Bxc5 {[%clk 0:01:08]}  Nxc5 {[%clk 0:01:41]} 20. g3 {[%clk 0:01:07]}  Nxa4 {[%clk 0:01:35]} 21. Rd2 {[%clk 0:00:56]}  Rfc8 {[%clk 0:01:32]} 22. Ng2 {[%clk 0:00:53]}  Ne8 {[%clk 0:01:26]} 23. f4 {[%clk 0:00:51]}  Nd6 {[%clk 0:01:25]} 24. Bf3 {[%clk 0:00:50]}  Nc4 {[%clk 0:01:24]} 25. Re2 {[%clk 0:00:50]}  Ncxb2 {[%clk 0:01:13]} 26. f5 {[%clk 0:00:48]}  Re8 {[%clk 0:01:05]} 27. Nf4 {[%clk 0:00:36]}  exf5 {[%clk 0:00:57]} 28. Bxd5 {[%clk 0:00:29]}  Rxe2 {[%clk 0:00:54]} 29. Nxe2 {[%clk 0:00:29]}  g6 {[%clk 0:00:53]} 30. g4 {[%clk 0:00:28]}  Rd8 {[%clk 0:00:52]} 31. Bb3 {[%clk 0:00:23]}  Nc5 {[%clk 0:00:49]} 32. Ba2 {[%clk 0:00:22]}  Rd1 {[%clk 0:00:47]} 33. gxf5 {[%clk 0:00:17]}  gxf5 {[%clk 0:00:47]} 34. Ng3 {[%clk 0:00:13]}  f4 {[%clk 0:00:44]} 35. Nh5 {[%clk 0:00:10]}  f3 {[%clk 0:00:43]} 36. Nf6+ {[%clk 0:00:07]}  Kg7 {[%clk 0:00:42]} 37. Nh5+ {[%clk 0:00:07]}  Kh6 {[%clk 0:00:41]} 38. Ng3 {[%clk 0:00:06]}  Ncd3 {[%clk 0:00:35]} 39. Rxd1 {[%clk 0:00:04]}  Nxd1 {[%clk 0:00:36]} 40. Kf1 {[%clk 0:00:03]}  Ne3+ {[%clk 0:00:35]} 41. Kg1 {[%clk 0:00:02]}  f2+ {[%clk 0:00:35]} 42. Kh1 {[%clk 0:00:01]}  f5 {[%clk 0:00:34]} 0-1


[Site "https://www.chess.com"]